bitfinex-derivatives/quotes_ETHF0:USTF0_20251119
["timestamp","ask_amount","ask_price","bid_price","bid_amount"]
[1763515668472,0.52093,3111.8,3111.7,1.6447]
[1763515668770,0.52093,3111.8,3111.7,2.45516032]
[1763515669073,0.52091,3111.9,3111.8,1.6447]
[1763515669263,0.52091,3111.9,3111.8,2.45516032]
[1763515669665,2.02651,3111.9,3111.8,2.45516032]
[1763515669972,2.03950031,3111.9,3111.8,0.81046032]
[1763515672277,2.02661,3111.3,3111.2,1.14538]
[1763515672472,1.5056,3111.1,3111.0,3.2078]
[1763515672671,0.52104,3111.2,3110.9,0.00883754]
[1763515672672,1.5056,3111.0,3110.9,0.00883754]
[1763515672974,1.5056,3111.0,3110.9,1.65353754]
[1763515673577,0.52103,3111.2,3110.9,1.65353754]
[1763515673978,0.52104,3111.1,3110.9,1.65353754]
[1763515674382,0.52103,3111.2,3111.1,1.6447]
[1763515675376,2.02663,3111.2,3111.1,1.6447]
[1763515675676,0.52106,3111.0,3110.9,3.36965211]
[1763515675878,3.2078,3111.4,3110.9,3.36965211]
[1763515676069,5.23439,3111.4,3111.3,0.86050162]
[1763515677581,2.02661,3111.3,3111.2,0.86050162]
[1763515678276,0.52105,3111.1,3110.9,1.72495211]
[1763515678482,0.52106,3111.0,3110.9,3.24185211]
[1763515678980,2.98096,3111.0,3110.9,1.72495211]
[1763515679182,2.98096,3111.0,3110.9,0.00883754]
[1763515680984,0.52106,3111.0,3110.9,1.52573754]
[1763515681185,3.2078,3111.4,3111.0,1.5169]
[1763515681384,0.52102,3111.2,3111.1,1.5169]
[1763515682081,3.2078,3111.4,3111.1,1.5169]
[1763515682288,2.06401,3111.3,3111.2,0.86115252]
[1763515682779,2.06402,3111.2,3111.1,0.86115252]
[1763515682977,2.06404,3111.1,3111.0,0.86115252]
[1763515683276,2.06404,3111.1,3110.9,0.00883754]
[1763515683277,0.52106,3111.0,3110.9,0.86999006]
[1763515683480,6.18876,3111.0,3110.9,0.86999006]
[1763515683779,2.06416,3110.4,3110.3,1.71611457]
[1763515683982,2.06419,3110.2,3110.1,3.2078]
[1763515684787,1.54622155,3110.2,3110.1,4.72842105]
[1763515684983,0.00322155,3110.2,3110.1,4.72842105]
[1763515685584,0.52441155,3110.2,3110.1,4.72842105]
[1763515685979,2.06741155,3110.2,3110.1,3.21152105]
[1763515687088,0.00322155,3110.2,3110.1,5.24963105]
[1763515687778,0.52111,3110.7,3110.6,1.5169]
[1763515687974,0.52108,3110.9,3110.8,1.5169]
[1763515688289,3.72886,3111.0,3110.9,1.5169]
[1763515688484,6.18876,3111.0,3110.9,1.5169]
[1763515688690,0.5211,3110.8,3110.5,3.2078]
[1763515689288,1.543,3110.6,3110.5,4.7247]
[1763515689588,0.52111,3110.7,3110.5,4.7247]
[1763515689787,0.52111,3110.7,3110.6,1.5169]
[1763515689979,3.73200273,3111.0,3110.9,1.5169]
[1763515690286,3.21093273,3111.0,3110.9,1.5169]
[1763515690487,3.73199273,3111.0,3110.9,1.5169]
[1763515691883,3.73199273,3111.0,3110.5,5.75561841]
[1763515691884,0.52112,3110.6,3110.5,6.44611841]
[1763515692188,4.12783273,3111.0,3110.5,6.44611841]
[1763515692189,0.52111,3110.7,3110.6,1.5169]
[1763515693486,0.52111,3110.7,3110.6,2.03802]
[1763515694182,0.52111,3110.7,3110.6,1.5169]
[1763515695286,0.52111,3110.7,3110.6,2.03802]
[1763515695688,0.52109,3110.8,3110.7,0.52109]
[1763515695888,0.52109,3110.8,3110.7,2.03799]
[1763515696089,0.52109,3110.8,3110.7,1.5169]
[1763515696288,0.52109,3110.8,3110.7,2.03801]
[1763515696890,0.52109,3110.8,3110.7,1.5169]
[1763515697090,0.52109,3110.8,3110.7,2.03801]
[1763515697488,3.21093273,3111.0,3110.6,1.72141841]
[1763515697489,2.06411,3110.7,3110.6,1.72141841]
[1763515697791,0.52112,3110.6,3110.5,6.44611841]
[1763515697991,0.52112,3110.6,3110.5,6.96725841]
[1763515697992,2.06412,3110.6,3110.5,6.96725841]
[1763515698489,0.52112,3110.6,3110.5,6.96725841]
[1763515698795,0.52112,3110.6,3110.5,5.24584]
[1763515699194,0.52111,3110.8,3110.7,2.03798]
[1763515699493,0.52111,3110.8,3110.7,1.5169]
[1763515699990,0.52111,3110.8,3110.7,2.03801]
[1763515700294,0.52111,3110.8,3110.7,3.76661773]
[1763515700992,0.00313273,3111.0,3110.9,1.5169]
[1763515701893,0.52419273,3111.0,3110.9,1.5169]
[1763515703186,0.52419273,3111.0,3110.9,2.03797]
[1763515703487,2.06719273,3111.0,3110.9,1.5169]
[1763515703689,0.52419273,3111.0,3110.9,1.5169]
[1763515704497,2.75179273,3111.0,3110.9,1.5169]
[1763515705289,1.93029,3110.8,3110.7,1.72860773]
[1763515705491,1.93031,3110.7,3110.6,1.72860773]
[1763515705690,1.93031,3110.7,3110.6,3.07110773]
[1763515706294,1.93031,3110.7,3110.6,1.3425]
[1763515706998,0.00313273,3111.0,3110.7,0.5211]
[1763515707196,0.00313273,3111.0,3110.8,2.49613007]
[1763515707197,0.52108,3110.9,3110.8,2.49613007]
[1763515707398,1.93028,3110.9,3110.8,1.15363007]
[1763515707698,1.93028,3110.9,3110.8,1.3608]
[1763515707896,0.52108,3110.9,3110.8,1.3608]
[1763515709296,0.52108,3110.9,3110.8,1.88189]
[1763515709600,0.52108,3110.9,3110.8,1.3608]
[1763515710103,1.84749,3110.8,3110.7,3.08940773]
[1763515710298,1.84749,3110.8,3110.7,1.72860773]
[1763515710499,0.52111,3110.7,3110.6,3.08940773]
[1763515710999,0.83803273,3111.0,3110.6,3.08940773]
[1763515711302,0.52111,3110.7,3110.6,3.08940773]
[1763515712500,1.84751,3110.7,3110.6,3.08940773]
[1763515712799,1.84752,3110.6,3110.5,4.93640773]
[1763515713098,1.84752,3110.6,3110.5,4.36180781]
[1763515715203,1.84752,3110.6,3110.5,3.2078]
[1763515715700,1.84756,3110.4,3110.3,1.72860773]
[1763515715899,0.52117,3110.3,3110.2,1.15463049]
[1763515716100,1.84757,3110.3,3110.2,1.15463049]
[1763515717304,1.84759,3110.2,3110.1,4.36615154]
[1763515720297,1.84759,3110.2,3110.1,5.72695154]
[1763515720500,5.05529,3110.8,3110.7,1.3608]
[1763515723906,3.2078,3110.8,3110.7,1.3608]
[1763515725005,3.72889,3110.8,3110.7,1.3608]
[1763515725209,1.84749,3110.8,3110.7,1.3608]
[1763515726305,1.84751,3110.7,3110.6,3.2078]
[1763515726706,0.52111,3110.7,3110.6,5.72048681]
[1763515727000,1.84751,3110.7,3110.6,4.5686]
[1763515727805,1.84751,3110.7,3110.6,3.2078]
[1763515728714,1.84751,3110.7,3110.6,4.5686]
[1763515729812,1.84751,3110.7,3110.6,3.2078]
[1763515732207,1.84751,3110.7,3110.6,4.5686]
[1763515732609,0.52111,3110.7,3110.6,4.5686]
[1763515733621,2.68549273,3111.0,3110.9,1.3608]
[1763515736520,1.84751,3110.7,3110.6,5.72048681]
[1763515736716,1.84751,3110.7,3110.6,4.35968681]
[1763515737121,1.84751,3110.7,3110.6,5.72048681]
[1763515738221,1.84751,3110.7,3110.6,4.35968681]
[1763515738422,1.84751,3110.7,3110.6,5.54378681]
[1763515739723,0.52420273,3111.0,3110.9,1.1841]
[1763515740322,2.50340273,3111.0,3110.9,1.1841]
[1763515740523,1.75119,3110.8,3110.7,2.3363048]
[1763515740721,1.2301,3110.8,3110.7,2.3363048]
[1763515741022,0.52108,3110.9,3110.8,1.1841]
[1763515742917,0.00313273,3111.0,3110.8,1.1841]
[1763515743116,0.00313273,3111.0,3110.9,1.1841]
[1763515743518,0.52104,3111.1,3111.0,1.1841]
[1763515743719,0.52104,3111.1,3111.0,6.12038716]
[1763515744117,0.9304,3111.5,3111.4,1.1841]
[1763515744326,4.95884,3111.7,3111.6,1.1841]
[1763515744520,0.52495943,3111.7,3111.6,1.1841]
[1763515744721,0.00401943,3111.7,3111.6,1.1841]
[1763515744922,0.00401943,3111.7,3111.6,2.33606172]
[1763515745126,0.52495943,3111.7,3111.6,2.33606172]
[1763515745424,0.52495943,3111.7,3111.6,1.1841]
[1763515747337,0.52495943,3111.7,3111.6,2.04632666]
[1763515747522,1.75505943,3111.7,3111.6,0.86222666]
[1763515748227,1.75505943,3111.7,3111.6,2.04632666]
[1763515748724,1.75505943,3111.7,3111.6,0.86222666]
[1763515748923,1.75106,3111.6,3111.5,2.04632666]
[1763515749227,0.00401943,3111.7,3111.4,1.15196172]
[1763515749228,1.9792,3111.5,3111.4,1.15196172]
[1763515749418,1.2301,3111.4,3111.3,1.15196172]
[1763515749730,1.27007,3111.5,3111.4,1.1841]
[1763515750031,2.50017,3111.5,3111.4,2.33352792]
[1763515751423,2.50017,3111.5,3111.4,1.1841]
[1763515751623,2.50017,3111.5,3111.4,0.86208251]
[1763515752328,1.75112,3111.2,3111.1,0.86208251]
[1763515752533,1.75112,3111.2,3111.1,2.04618251]
[1763515753732,1.2301,3111.2,3111.1,2.04618251]
[1763515754036,1.75112,3111.3,3111.2,1.1841]
[1763515754226,1.75112,3111.3,3111.2,2.04653085]
[1763515754427,1.75112,3111.3,3111.2,1.1841]
[1763515754624,1.75112,3111.2,3111.1,0.86243085]
[1763515755128,1.9792,3111.5,3111.4,1.1841]
[1763515755422,4.96285943,3111.7,3111.6,1.1841]
[1763515756430,0.52097,3111.5,3111.4,2.04656418]
[1763515756624,0.52096,3111.6,3111.4,3.2078]
[1763515756830,0.52096,3111.6,3111.5,1.1841]
[1763515757442,1.9792,3111.5,3111.4,5.25436418]
[1763515757644,1.75505943,3111.7,3111.6,1.1841]
[1763515758542,1.23411943,3111.7,3111.6,1.1841]
[1763515758735,0.00401943,3111.7,3111.6,1.70506]
[1763515758936,0.00401943,3111.7,3111.6,2.56752418]
[1763515759430,0.00401943,3111.7,3111.6,2.04656418]
[1763515759631,0.00401943,3111.7,3111.6,2.56752418]
[1763515760039,0.00401943,3111.7,3111.6,2.04656418]
[1763515760240,0.52495943,3111.7,3111.6,2.04656418]
[1763515760441,1.75505943,3111.7,3111.6,0.86246418]
[1763515760943,1.75106,3111.6,3111.5,0.86246418]
[1763515761140,2.50017,3111.5,3111.4,2.04656418]
[1763515763341,2.50017,3111.5,3111.4,0.86246418]
[1763515763536,0.52099,3111.4,3111.3,0.86246418]
[1763515763844,1.66999,3111.4,3111.3,2.02416418]
[1763515764147,1.66999,3111.4,3111.3,1.1617]
[1763515765741,1.66999,3111.4,3111.2,1.14942792]
[1763515765742,0.00401943,3111.7,3111.6,1.1617]
[1763515766433,0.00401943,3111.7,3111.6,1.68266]
[1763515766838,0.00401943,3111.7,3111.6,2.54673616]
[1763515768846,0.00401943,3111.7,3111.6,2.02577616]
[1763515769249,0.00401943,3111.7,3111.6,1.68266]
[1763515770744,3.2078,3112.3,3112.2,1.65826]
[1763515770947,3.2078,3112.3,3112.2,1.1374]
[1763515771148,0.52079,3112.6,3112.5,1.1374]
[1763515771348,1.26983,3113.0,3112.9,1.1374]
[1763515771644,3.2078,3113.2,3112.9,1.1374]
[1763515771645,0.52071,3113.1,3113.0,1.1374]
[1763515772153,0.00235782,3113.1,3113.0,1.65812]
[1763515772844,0.00235782,3113.1,3113.0,1.1374]
[1763515774447,1.60286782,3113.1,3113.0,1.1374]
[1763515774644,1.08215782,3113.1,3113.0,1.1374]
[1763515775148,1.60286782,3113.1,3113.0,1.1374]
[1763515775548,1.7535,3113.0,3112.9,0.00320471]
[1763515775851,0.52306782,3113.1,3113.0,1.1374]
[1763515776040,2.27422,3113.0,3112.9,0.00320471]
[1763515776240,1.60059,3112.6,3112.5,1.1374]
[1763515776437,0.6737,3113.0,3112.5,1.1374]
[1763515776642,0.52075,3112.9,3112.6,1.1374]
[1763515776842,0.52077,3112.8,3112.7,1.1374]
[1763515777243,0.52077,3112.8,3112.7,1.14048597]
[1763515779951,3.2078,3112.9,3112.8,1.1374]
[1763515780357,0.52073,3113.0,3112.9,1.1374]
[1763515780649,0.00235782,3113.1,3113.0,1.4443]
[1763515780845,0.00235782,3113.1,3113.0,1.96502]
[1763515781047,0.00235782,3113.1,3113.0,1.4443]
[1763515781556,0.00235782,3113.1,3113.0,1.1374]
[1763515781747,0.52306782,3113.1,3113.0,1.1374]
[1763515781951,0.6737,3113.0,3112.7,3.21088597]
[1763515782150,1.60056,3112.8,3112.7,3.21088597]
[1763515782351,1.60056,3112.8,3112.7,4.34828597]
[1763515782551,0.52076,3112.8,3112.7,4.34828597]
[1763515783151,1.60056,3112.8,3112.7,4.34828597]
[1763515783348,0.52076,3112.8,3112.7,4.34828597]
[1763515783655,0.52074,3112.9,3112.8,1.1374]
[1763515784051,1.60054,3112.9,3112.8,1.1374]
[1763515784955,1.60056,3112.8,3112.7,4.34828597]
[1763515785655,0.52076,3112.8,3112.7,4.86905597]
[1763515786655,0.52306782,3113.1,3113.0,1.1374]
[1763515787961,0.00235782,3113.1,3113.0,1.1374]
[1763515788464,0.52306782,3113.1,3113.0,1.1374]
[1763515789763,0.00235782,3113.1,3113.0,1.1374]
[1763515790166,0.00235782,3113.1,3113.0,1.65812]
[1763515790560,0.52306782,3113.1,3113.0,1.1374]
[1763515790764,0.00235782,3113.1,3113.0,1.1374]
[1763515791161,0.00235782,3113.1,3113.0,1.96502]
[1763515791472,0.00235782,3113.1,3113.0,2.82916508]
[1763515791961,0.00235782,3113.1,3113.0,2.00154508]
[1763515792167,1.08215782,3113.1,3113.0,2.00154508]
[1763515792368,0.00235782,3113.1,3113.0,2.52226508]
[1763515792772,2.27422,3113.0,3112.9,0.86414508]
[1763515792972,2.27422,3113.0,3112.8,0.86414508]
[1763515792973,1.60054,3112.9,3112.8,0.86414508]
[1763515793276,1.60056,3112.8,3112.7,0.00308597]
[1763515796781,1.60056,3112.8,3112.7,1.14048597]
[1763515797079,1.60056,3112.8,3112.7,0.00308597]
[1763515797483,1.19444,3113.0,3112.9,0.9953]
[1763515798375,1.54086,3112.8,3112.7,1.86253105]
[1763515798583,1.0201,3112.8,3112.7,1.86253105]
[1763515799273,1.54086,3112.8,3112.7,0.86723105]
[1763515800378,1.54086,3112.8,3112.7,0.00308597]
[1763515800682,1.54086,3112.8,3112.7,0.99838597]
[1763515800875,1.0201,3112.8,3112.7,0.99838597]
[1763515801878,1.54086,3112.8,3112.7,0.99838597]
[1763515802074,1.54086,3112.8,3112.7,0.86625496]
[1763515802278,6.0,3112.8,3112.3,0.53629284]
[1763515802478,2.11269,3112.0,3111.9,1.15769741]
[1763515802779,1.54109,3111.4,3111.3,1.15287294]
[1763515802979,1.09267,3111.5,3111.4,0.9953]
[1763515803280,1.0201,3111.4,3111.2,1.1520328]
[1763515803481,1.0201,3111.4,3111.3,0.9953]
[1763515803683,1.09267,3111.5,3111.4,0.9953]
[1763515804181,0.00482447,3111.7,3111.6,0.9953]
[1763515804882,0.00482447,3111.7,3111.6,1.51626]
[1763515805079,0.00482447,3111.7,3111.6,2.6682928]
[1763515805276,3.2078,3112.2,3112.1,0.9953]
[1763515805980,3.72866,3112.2,3112.1,0.9953]
[1763515806182,4.74876,3112.2,3112.1,0.9953]
[1763515806477,4.2279,3112.2,3111.8,1.14861423]
[1763515806781,1.54102,3111.8,3111.7,1.14861423]
[1763515807373,1.54102,3111.8,3111.7,2.14391423]
[1763515807573,1.54104,3111.7,3111.5,1.14861423]
[1763515807775,0.52094,3111.7,3111.6,0.9953]
[1763515808083,3.2078,3112.1,3112.0,0.9953]
[1763515808084,0.52087,3112.1,3112.0,0.9953]
[1763515808285,3.7795,3112.5,3112.1,0.9953]
[1763515808486,0.52086,3112.2,3112.1,0.9953]
[1763515808685,3.7795,3112.5,3112.1,0.9953]
[1763515809088,2.11269,3112.0,3111.9,3.2078]
[1763515809390,2.11269,3112.0,3111.9,0.9953]
[1763515809590,0.52089,3112.0,3111.9,0.9953]
[1763515810680,0.52092,3111.8,3111.7,0.9953]
[1763515810885,0.52091,3111.9,3111.7,0.9953]
[1763515811190,0.52092,3111.8,3111.7,0.9953]
[1763515811389,1.54104,3111.7,3111.6,1.14861423]
[1763515811582,1.54106,3111.6,3111.5,3.2078]
[1763515811885,0.52091,3111.9,3111.8,0.9953]
[1763515812391,3.7795,3112.5,3111.9,0.9953]
[1763515812587,3.7795,3112.5,3111.9,1.51621]
[1763515812787,0.52087,3112.2,3112.1,0.9953]
[1763515812990,0.5717,3112.5,3112.4,0.9953]
[1763515813292,0.5208,3112.6,3112.5,0.9953]
[1763515813493,1.5409,3112.6,3112.5,0.9953]
[1763515813794,1.0201,3112.1,3112.0,3.2078]
[1763515813994,0.52085,3112.3,3112.0,4.72399]
[1763515814291,0.5717,3112.5,3112.1,0.9953]
[1763515814493,0.52082,3112.4,3112.1,1.51617]
[1763515814688,0.52082,3112.4,3112.1,0.9953]
[1763515814879,1.09251,3112.5,3112.2,0.52086]
[1763515815084,0.52084,3112.3,3112.0,3.72869]
[1763515815393,0.52083,3112.4,3112.3,0.9953]
[1763515815989,1.54093,3112.4,3112.0,3.72869]
[1763515816193,0.5208,3112.6,3112.5,0.9953]
[1763515816386,1.0201,3112.7,3112.6,0.9953]
[1763515816788,1.54088,3112.7,3112.4,0.52081]
[1763515817381,3.2078,3113.3,3112.9,0.9953]
[1763515817582,3.2078,3113.3,3113.0,1.51602]
[1763515818186,0.52067,3113.4,3113.0,4.72382]
[1763515818395,0.52068,3113.3,3113.0,4.72382]
[1763515818794,0.5207,3113.2,3113.0,4.2031]
[1763515819092,0.5717,3113.0,3112.7,0.00482447]
[1763515819290,1.54086,3112.8,3112.7,0.00482447]
[1763515820894,0.52086,3112.2,3112.1,3.2078]
[1763515821082,1.0201,3112.2,3112.1,3.2078]
[1763515821688,1.54096,3112.2,3112.1,3.2078]
[1763515822587,1.0201,3112.2,3112.1,3.2078]
[1763515822997,1.54096,3112.2,3112.1,3.2078]
[1763515823293,0.57652447,3112.5,3112.1,3.2078]
[1763515823294,0.57652447,3112.5,3112.1,4.2031]
[1763515823498,0.52086,3112.2,3112.1,3.2078]
[1763515823994,1.46946,3112.2,3112.1,3.2078]
[1763515824196,0.9486,3112.2,3112.1,3.2078]
[1763515824397,0.52084,3112.3,3112.1,4.1052]
[1763515824587,0.52084,3112.4,3112.1,4.1052]
[1763515824794,0.52082,3112.4,3112.1,4.1052]
[1763515824990,0.52083,3112.4,3112.1,4.1052]
[1763515825199,0.9486,3112.2,3112.1,3.2078]
[1763515825595,0.52084,3112.3,3112.2,0.8974]
[1763515825994,0.52086,3112.2,3112.1,3.2078]
[1763515826297,0.52084,3112.3,3112.2,0.8974]
[1763515826701,1.46946,3112.2,3112.1,3.2078]
[1763515826999,0.57652447,3112.5,3112.1,4.62607]
[1763515827200,0.52084,3112.3,3112.2,0.8974]
[1763515827699,0.52084,3112.4,3112.3,0.8974]
[1763515827891,0.57652447,3112.5,3112.4,0.8836]
[1763515828092,0.00482447,3112.5,3112.4,0.8836]
[1763515828491,0.00482447,3112.5,3112.4,1.40442]
[1763515829191,3.2078,3112.8,3112.6,0.52078]
[1763515829392,0.52077,3112.7,3112.5,2.55339613]
[1763515829592,0.52077,3112.7,3112.5,1.40441]
[1763515830001,0.52077,3112.7,3112.5,2.55339613]
[1763515830202,0.52077,3112.7,3112.6,0.8836]
[1763515831099,1.47657,3112.7,3112.6,0.8836]
[1763515831394,0.9558,3112.7,3112.4,1.14898613]
[1763515831598,1.4936,3112.5,3112.2,1.14898613]
[1763515831798,0.52084,3112.3,3112.2,2.03258613]
[1763515831996,1.47664,3112.3,3112.2,2.03258613]
[1763515832300,0.52082,3112.4,3112.3,0.8836]
[1763515832696,0.52082,3112.4,3112.3,1.40444]
[1763515833498,0.52082,3112.4,3112.3,2.55266999]
[1763515833797,1.05861,3112.5,3112.3,2.55266999]
[1763515833999,3.72856,3112.8,3112.7,0.8836]
[1763515834203,0.52076,3112.8,3112.7,0.8836]
[1763515834699,0.52076,3112.8,3112.7,1.40437]
[1763515834897,0.52076,3112.8,3112.7,0.8836]
[1763515835293,0.9558,3112.6,3112.5,4.35602999]
[1763515835495,0.52078,3112.7,3112.5,4.87682999]
[1763515836003,0.52078,3112.7,3112.6,0.8836]
[1763515836294,0.5717,3113.0,3112.9,0.8836]
[1763515836499,1.5275,3113.0,3112.9,0.8836]
[1763515836700,1.5275,3113.0,3112.6,1.14822999]
[1763515836900,1.09243,3113.0,3112.8,1.40435]
[1763515837102,1.09243,3113.0,3112.9,0.8836]
[1763515837497,0.00235782,3113.1,3113.0,0.8836]
[1763515838603,0.52306782,3113.1,3113.0,0.8836]
[1763515839396,0.52306782,3113.1,3113.0,1.40432]
[1763515839397,0.00235782,3113.1,3113.0,1.40432]
[1763515839602,0.95815782,3113.1,3113.0,0.8836]
[1763515839804,0.00235782,3113.1,3113.0,0.8836]
[1763515840200,0.00235782,3113.1,3113.0,1.40432]
[1763515840598,2.01432,3113.0,3112.9,4.35602999]
[1763515840807,2.01432,3113.0,3112.9,3.2078]
[1763515841609,1.47659,3112.6,3112.5,3.2078]
[1763515843309,1.47666,3112.2,3112.1,3.2078]
[1763515843500,1.47671,3111.9,3111.8,0.00482447]
[1763515845002,0.9558,3111.9,3111.8,0.00482447]
[1763515846220,0.5378,3112.0,3111.2,0.00369212]
[1763515846221,1.47681,3111.3,3111.2,0.00369212]
[1763515846503,4.68461,3111.3,3111.2,0.00369212]
[1763515846710,4.68461,3111.3,3111.2,0.88729212]
[1763515846897,3.72881,3111.3,3111.2,0.88729212]
[1763515847098,0.52101,3111.3,3111.2,0.88729212]
[1763515847305,0.52098,3111.5,3111.2,0.88729212]
[1763515847502,0.00482447,3111.6,3111.5,1.4273]
[1763515847700,0.00482447,3111.6,3111.5,1.94827]
[1763515847909,3.2078,3112.5,3112.4,0.8836]
[1763515848110,3.72861,3112.5,3112.4,0.8836]
[1763515848407,3.2078,3112.5,3112.0,0.5437]
[1763515849115,3.2078,3112.1,3112.0,1.4273]
[1763515849602,3.2078,3112.1,3112.0,1.94819]
[1763515849805,3.2078,3112.1,3112.0,1.4273]
[1763515850012,0.9558,3111.8,3111.7,1.14761555]
[1763515850212,3.2078,3112.1,3111.5,2.27218716]
[1763515850213,0.5209,3112.0,3111.9,0.8836]
[1763515850413,0.52092,3111.9,3111.5,1.69131555]
[1763515850922,0.52092,3111.8,3111.7,0.8836]
[1763515851102,0.52091,3112.0,3111.9,0.8836]
[1763515851307,0.9558,3112.0,3111.5,2.21228555]
[1763515851711,0.9558,3112.0,3111.6,0.52096]
[1763515851915,1.47673,3111.8,3111.7,0.8836]
[1763515852609,0.52093,3111.8,3111.7,0.8836]
[1763515853915,0.9558,3111.5,3111.4,1.14761555]
[1763515854219,3.2078,3112.0,3111.3,1.40461]
[1763515854220,0.52096,3111.6,3111.3,1.40461]
[1763515854712,0.52096,3111.6,3111.5,0.8836]
[1763515854908,4.68456,3111.6,3111.2,1.15130767]
[1763515855218,0.9558,3111.3,3111.2,0.00369212]
[1763515856618,0.52099,3111.4,3111.3,0.8836]
[1763515857114,1.47679,3111.4,3111.3,0.8836]
[1763515857617,0.52101,3111.3,3111.2,0.00369212]
[1763515857821,0.52099,3111.4,3111.2,0.00369212]
[1763515858021,3.72876,3111.6,3111.5,1.387]
[1763515858323,3.2078,3111.6,3111.4,0.8826]
[1763515858509,0.52097,3111.5,3111.4,0.8826]
[1763515859122,1.43671,3111.3,3111.2,0.00369212]
[1763515859312,3.2078,3111.6,3111.2,0.88629212]
[1763515859615,0.52101,3111.3,3111.2,0.88629212]
[1763515859812,0.9157,3111.3,3110.9,0.00482447]
[1763515860023,0.52127,3109.8,3109.3,2.87610271]
[1763515860319,0.52127,3109.8,3109.2,3.2078]
[1763515860320,3.2078,3109.8,3109.7,0.8826]
[1763515860705,0.9157,3109.6,3109.2,4.35541555]
[1763515860909,3.2078,3110.0,3109.9,0.8826]
[1763515861109,0.52133,3109.4,3109.2,0.00306547]
[1763515861315,3.72913,3109.4,3109.2,0.00306547]
[1763515861820,3.2078,3109.4,3109.3,0.8826]
[1763515863309,0.9157,3109.3,3109.2,0.00306547]
[1763515864417,3.2078,3109.4,3109.3,0.8826]
[1763515864913,0.2,4160.0,3109.5,0.5044]
[1763515864914,3.2078,3110.4,3109.5,0.5044]
[1763515865121,3.72896,3110.4,3110.1,0.8826]
[1763515865321,3.2078,3110.4,3110.3,0.8826]
[1763515865523,3.2078,3110.4,3109.8,3.2078]
[1763515865720,0.9157,3109.9,3109.8,3.2078]
[1763515865913,0.52126,3109.8,3109.5,0.5044]
[1763515866119,0.00368008,3109.9,3109.2,3.21086547]
[1763515866316,0.52129,3109.6,3109.2,3.73222547]
[1763515866721,0.52134,3109.3,3109.2,3.21086547]
[1763515867113,0.52134,3109.3,3109.2,4.09346547]
[1763515867310,1.43704,3109.3,3109.2,0.00306547]
[1763515868012,3.21148008,3109.9,3109.4,0.8826]
[1763515868213,3.21148008,3109.9,3109.8,4.61166]
[1763515868214,0.00368008,3109.9,3109.8,4.61166]
[1763515869518,0.00368008,3109.9,3109.8,4.0904]
[1763515869719,0.00368008,3109.9,3109.8,4.61166]
[1763515870221,0.1189,3111.5,3109.8,4.61166]
[1763515870222,3.2078,3111.7,3110.7,0.5211]
[1763515870423,0.52102,3111.2,3111.0,1.387]
[1763515870718,0.52104,3111.1,3111.0,1.387]
[1763515871112,3.2078,3111.7,3111.1,0.8826]
[1763515871316,3.21060454,3111.7,3111.1,0.8826]
[1763515871520,0.52102,3111.2,3111.1,0.8826]
[1763515871818,0.52104,3111.1,3110.9,3.21262447]
[1763515872213,3.2078,3111.3,3110.9,0.00482447]
[1763515872415,0.52104,3111.1,3110.9,0.00482447]
[1763515872722,0.521,3111.4,3111.0,1.387]
[1763515872920,0.52101,3111.3,3111.0,1.387]
[1763515873123,3.21060454,3111.7,3111.0,1.387]
[1763515873925,3.21060454,3111.7,3111.2,0.8826]
[1763515874120,3.21060454,3111.7,3111.4,0.8826]
[1763515874318,1.43667,3111.5,3111.4,0.00253675]
[1763515874723,3.21060454,3111.7,3111.6,0.8826]
[1763515874926,3.73154454,3111.7,3111.6,0.8826]
[1763515875620,3.21060454,3111.7,3111.4,0.00253675]
[1763515875820,0.52097,3111.5,3111.4,0.00253675]
[1763515876020,1.43667,3111.5,3111.4,0.00253675]
[1763515876623,3.73155454,3111.7,3111.4,0.00253675]
[1763515876926,0.52097,3111.6,3111.4,0.00253675]
[1763515877121,0.52097,3111.5,3111.4,0.00253675]
[1763515878129,1.43667,3111.5,3111.4,0.00253675]
[1763515878315,1.96097,3111.5,3111.4,0.00253675]
[1763515880720,1.43667,3111.5,3111.4,0.00253675]
[1763515880916,0.52097,3111.5,3111.4,0.88513675]
[1763515881323,1.43667,3111.5,3111.4,0.88513675]
[1763515881523,1.92937,3111.5,3111.4,0.00253675]
[1763515882222,1.43667,3111.5,3111.4,0.00253675]
[1763515882929,4.64447,3111.5,3111.4,0.00253675]
[1763515884934,3.7005,3111.5,3110.9,0.00482447]
[1763515885124,1.42376,3111.0,3110.9,0.00482447]
[1763515885432,1.85196,3111.0,3110.9,0.00482447]
[1763515885822,0.9027,3111.0,3110.9,0.00482447]
[1763515886024,0.52104,3111.1,3111.0,1.3583]
[1763515886423,0.52104,3111.1,3111.0,1.36208874]
[1763515886728,1.42374,3111.1,3111.0,0.00378874]
[1763515887225,4.63154,3111.1,3111.0,0.00378874]
[1763515888324,0.8144,3110.5,3110.4,3.2078]
[1763515889325,1.33554,3110.5,3110.4,3.21114251]
[1763515890522,0.00482447,3110.8,3110.5,0.5003]
[1763515890919,0.00482447,3110.8,3110.7,0.8024]
[1763515891229,0.00482447,3110.8,3110.7,1.32351]
[1763515892333,0.00482447,3110.8,3110.7,0.8024]
[1763515892833,0.00482447,3110.8,3110.7,1.32351]
[1763515893134,0.00482447,3110.8,3110.7,0.8024]
[1763515893327,0.00482447,3110.8,3110.7,1.32351]
[1763515894036,0.52112,3110.6,3110.5,0.5003]
[1763515894334,0.00482447,3110.8,3110.4,3.21114251]
[1763515894335,1.33554,3110.5,3110.4,3.21114251]
[1763515895731,0.00482447,3110.8,3110.7,0.8024]
[1763515896228,1.34031447,3110.8,3110.7,0.8024]
[1763515896433,0.52591447,3110.8,3110.7,0.8024]
[1763515897530,1.33551,3110.7,3110.6,0.86154269]
[1763515898137,0.52111,3110.7,3110.6,1.66394269]
[1763515898335,0.52111,3110.7,3110.6,1.66534296]
[1763515899333,0.52111,3110.7,3110.6,0.8024]
[1763515899534,0.52591447,3110.8,3110.6,1.32352]